[Event "*** Titled Tuesday Blitz"]
[Site "Chess.com"]
[Date "2020.04.21"]
[Round "6"]
[White "BIG_Pirate"]
[Black "AleksanderHnydiuk"]
[Result "0-1"]
[WhiteElo "2398"]
[BlackElo "2578"]
[TimeControl "180+1"]
[EndTime "11:08:54 PDT"]
[Termination "AleksanderHnydiuk won on time"]

1. Nf3 {[%clk 0:03:00.9]} 1... d5 {[%clk 0:02:58.9]} 2. c4 {[%clk 0:03:00.8]}
2... c6 {[%clk 0:02:58.5]} 3. g3 {[%clk 0:03:00.9]} 3... Nf6 {[%clk 0:02:58.7]}
4. Bg2 {[%clk 0:03:01.3]} 4... dxc4 {[%clk 0:02:59.1]} 5. O-O {[%clk 0:02:59.1]}
5... Be6 {[%clk 0:02:59.3]} 6. a4 {[%clk 0:02:55.7]} 6... Na6 {[%clk 0:02:57.7]}
7. Na3 {[%clk 0:02:45.9]} 7... Bd5 {[%clk 0:02:53.3]} 8. Qc2 {[%clk 0:02:32.1]}
8... Nb4 {[%clk 0:02:53.2]} 9. Qc3 {[%clk 0:02:30.5]} 9... Ne4 {[%clk
0:02:44.3]} 10. Qxb4 {[%clk 0:02:26.9]} 10... a5 {[%clk 0:02:44.2]} 11. Qxb7
{[%clk 0:02:21.7]} 11... Nd6 {[%clk 0:02:44.1]} 12. Qxa8 {[%clk 0:02:07.4]}
12... Qxa8 {[%clk 0:02:45]} 13. Re1 {[%clk 0:02:07.3]} 13... g6 {[%clk
0:02:40.8]} 14. Ne5 {[%clk 0:02:04.6]} 14... Bxg2 {[%clk 0:02:38.2]} 15. Kxg2
{[%clk 0:02:05.5]} 15... Bg7 {[%clk 0:02:37.7]} 16. Nexc4 {[%clk 0:02:03.7]}
16... O-O {[%clk 0:02:36.4]} 17. d3 {[%clk 0:02:01.4]} 17... Rb8 {[%clk
0:02:31.6]} 18. Bf4 {[%clk 0:01:59.7]} 18... Rb4 {[%clk 0:02:17.3]} 19. Nxd6
{[%clk 0:01:51.9]} 19... exd6 {[%clk 0:02:18.2]} 20. Bxd6 {[%clk 0:01:51.9]}
20... Rxb2 {[%clk 0:02:16.6]} 21. Rab1 {[%clk 0:01:02.8]} 21... c5+ {[%clk
0:02:12.9]} 22. Kg1 {[%clk 0:00:58.3]} 22... Qe8 {[%clk 0:02:01.8]} 23. Rxb2
{[%clk 0:00:54.7]} 23... Bxb2 {[%clk 0:02:02]} 24. Nc4 {[%clk 0:00:55.1]} 24...
Bc3 {[%clk 0:02:01.9]} 25. Rb1 {[%clk 0:00:52.8]} 25... Qxe2 {[%clk 0:01:32.9]}
26. Rb8+ {[%clk 0:00:41.1]} 26... Kg7 {[%clk 0:01:33.1]} 27. Bf8+ {[%clk
0:00:33]} 27... Kf6 {[%clk 0:01:32.9]} 28. Nd6 {[%clk 0:00:33.3]} 28... Qxd3
{[%clk 0:01:11.9]} 29. Re8 {[%clk 0:00:21.6]} 29... g5 {[%clk 0:00:50.7]} 30.
Ne4+ {[%clk 0:00:09.5]} 30... Kg6 {[%clk 0:00:49.2]} 31. Nxc5 {[%clk 0:00:09]}
31... Qd1+ {[%clk 0:00:47.4]} 32. Kg2 {[%clk 0:00:09.5]} 32... Qd5+ {[%clk
0:00:47.2]} 33. Kg1 {[%clk 0:00:09.1]} 33... Bb4 {[%clk 0:00:43.3]} 34. Rc8
{[%clk 0:00:05.3]} 34... h5 {[%clk 0:00:37.9]} 35. h3 {[%clk 0:00:05]} 35... h4
{[%clk 0:00:36.5]} 36. g4 {[%clk 0:00:04.7]} 36... Qf3 {[%clk 0:00:28.4]} 37.
Rd8 {[%clk 0:00:02.9]} 37... Qxh3 {[%clk 0:00:20.9]} 38. Rd4 {[%clk 0:00:01.9]}
38... Qc3 {[%clk 0:00:16]} 0-1

[Event "*** Titled Tuesday Blitz"]
[Site "Chess.com"]
[Date "2020.04.21"]
[Round "6"]
[White "GodDMuhammad"]
[Black "varacalli"]
[Result "1-0"]
[WhiteElo "2191"]
[BlackElo "2337"]
[TimeControl "180+1"]
[EndTime "11:08:54 PDT"]
[Termination "GodDMuhammad won on time"]

1. Nf3 {[%clk 0:02:57.7]} 1... Nf6 {[%clk 0:02:58.8]} 2. d3 {[%clk 0:02:54.4]}
2... d5 {[%clk 0:02:55.5]} 3. g3 {[%clk 0:02:54.5]} 3... Bf5 {[%clk 0:02:54.8]}
4. Bg2 {[%clk 0:02:55.4]} 4... e6 {[%clk 0:02:53]} 5. Nbd2 {[%clk 0:02:55.3]}
5... h6 {[%clk 0:02:53.3]} 6. O-O {[%clk 0:02:51.2]} 6... Be7 {[%clk 0:02:53.5]}
7. Re1 {[%clk 0:02:52.1]} 7... O-O {[%clk 0:02:53.4]} 8. e4 {[%clk 0:02:52.4]}
8... Bh7 {[%clk 0:02:53.9]} 9. e5 {[%clk 0:02:49.2]} 9... Nfd7 {[%clk
0:02:53.7]} 10. d4 {[%clk 0:02:48]} 10... c5 {[%clk 0:02:53.6]} 11. c3 {[%clk
0:02:47.6]} 11... Nc6 {[%clk 0:02:53.9]} 12. Nf1 {[%clk 0:02:40.3]} 12... b5
{[%clk 0:02:51]} 13. Be3 {[%clk 0:02:39.5]} 13... a5 {[%clk 0:02:49.9]} 14. h4
{[%clk 0:02:30.8]} 14... b4 {[%clk 0:02:49.2]} 15. h5 {[%clk 0:02:22.1]} 15...
bxc3 {[%clk 0:02:48.3]} 16. bxc3 {[%clk 0:02:21]} 16... cxd4 {[%clk 0:02:48.7]}
17. cxd4 {[%clk 0:02:19.8]} 17... Nb4 {[%clk 0:02:48.8]} 18. Re2 {[%clk
0:02:10.6]} 18... Rc8 {[%clk 0:02:43.7]} 19. Ne1 {[%clk 0:02:00.8]} 19... Nb6
{[%clk 0:02:32.7]} 20. Nd2 {[%clk 0:01:53]} 20... Qd7 {[%clk 0:02:10.2]} 21. a3
{[%clk 0:01:44.7]} 21... Nc2 {[%clk 0:01:52.2]} 22. Nxc2 {[%clk 0:01:41.8]}
22... Rxc2 {[%clk 0:01:47.6]} 23. Nb3 {[%clk 0:01:15.5]} 23... Rxe2 {[%clk
0:01:38.4]} 24. Qxe2 {[%clk 0:01:16.4]} 24... Nc4 {[%clk 0:01:33.7]} 25. Nc5
{[%clk 0:01:08.2]} 25... Qc7 {[%clk 0:01:13]} 26. Nd3 {[%clk 0:00:13]} 26... Rb8
{[%clk 0:01:05.7]} 27. g4 {[%clk 0:00:11.5]} 27... Rb3 {[%clk 0:01:04.7]} 28.
Nf4 {[%clk 0:00:09.9]} 28... Bg5 {[%clk 0:00:55.4]} 29. Rc1 {[%clk 0:00:08.3]}
29... Qb6 {[%clk 0:00:41.4]} 30. Nxd5 {[%clk 0:00:05.8]} 30... exd5 {[%clk
0:00:35.9]} 31. Bxg5 {[%clk 0:00:06.7]} 31... hxg5 {[%clk 0:00:33.1]} 32. Bxd5
{[%clk 0:00:07.6]} 32... Rb1 {[%clk 0:00:11]} 33. Qxc4 {[%clk 0:00:05.4]} 33...
Rxc1+ {[%clk 0:00:11]} 34. Qxc1 {[%clk 0:00:06.3]} 34... Bd3 {[%clk 0:00:09.3]}
35. Qxg5 {[%clk 0:00:05.6]} 35... Qxd4 {[%clk 0:00:07.4]} 36. h6 {[%clk
0:00:05.5]} 1-0

[Event "*** Titled Tuesday Blitz"]
[Site "Chess.com"]
[Date "2020.04.21"]
[Round "6"]
[White "zmeeed67"]
[Black "MikeSailer"]
[Result "1-0"]
[WhiteElo "2388"]
[BlackElo "2147"]
[TimeControl "180+1"]
[EndTime "11:08:55 PDT"]
[Termination "zmeeed67 won on time"]

1. d4 {[%clk 0:03:00.9]} 1... d5 {[%clk 0:02:59.8]} 2. c4 {[%clk 0:03:01.2]}
2... Bf5 {[%clk 0:02:59.6]} 3. cxd5 {[%clk 0:03:00.7]} 3... Bxb1 {[%clk
0:02:59.1]} 4. Qa4+ {[%clk 0:03:00.4]} 4... Qd7 {[%clk 0:02:58.2]} 5. Qxd7+
{[%clk 0:02:46.4]} 5... Nxd7 {[%clk 0:02:58.2]} 6. Rxb1 {[%clk 0:02:47.3]} 6...
Ngf6 {[%clk 0:02:56.6]} 7. Nf3 {[%clk 0:02:42.6]} 7... Nxd5 {[%clk 0:02:55.1]}
8. e4 {[%clk 0:02:40.1]} 8... N5f6 {[%clk 0:02:35.8]} 9. Bd3 {[%clk 0:02:39]}
9... e6 {[%clk 0:02:34.2]} 10. b4 {[%clk 0:02:26.6]} 10... h6 {[%clk 0:02:32.2]}
11. Bf4 {[%clk 0:02:20.1]} 11... c6 {[%clk 0:02:23.1]} 12. Ke2 {[%clk
0:02:19.1]} 12... Nh5 {[%clk 0:02:10.5]} 13. Be3 {[%clk 0:02:14.3]} 13... g5
{[%clk 0:01:53.9]} 14. g3 {[%clk 0:02:08]} 14... Be7 {[%clk 0:01:38.2]} 15. Rhc1
{[%clk 0:01:50.2]} 15... O-O {[%clk 0:01:23.8]} 16. b5 {[%clk 0:01:46.8]} 16...
cxb5 {[%clk 0:01:18.8]} 17. Rxb5 {[%clk 0:01:26.5]} 17... Nb6 {[%clk 0:01:13]}
18. Rc7 {[%clk 0:01:09]} 18... Ba3 {[%clk 0:01:10.8]} 19. Rxb7 {[%clk
0:01:05.8]} 19... Rfc8 {[%clk 0:01:06.5]} 20. h4 {[%clk 0:01:03.6]} 20... g4
{[%clk 0:01:03.8]} 21. Nd2 {[%clk 0:00:33.7]} 21... Nf6 {[%clk 0:00:59.9]} 22.
Bxh6 {[%clk 0:00:33.7]} 22... Na4 {[%clk 0:00:58.2]} 23. Rg5+ {[%clk 0:00:29.2]}
23... Kh7 {[%clk 0:00:56.9]} 24. e5+ {[%clk 0:00:25.1]} 24... Kxh6 {[%clk
0:00:53.1]} 25. Rxf7 {[%clk 0:00:22.4]} 25... Nc3+ {[%clk 0:00:48.2]} 26. Kf1
{[%clk 0:00:22.3]} 26... Rf8 {[%clk 0:00:32.5]} 27. Rg6+ {[%clk 0:00:21.8]}
27... Kh5 {[%clk 0:00:32.3]} 28. Rg5+ {[%clk 0:00:15]} 28... Kh6 {[%clk
0:00:31.4]} 29. Rxf6+ {[%clk 0:00:15]} 29... Rxf6 {[%clk 0:00:30.6]} 30. exf6
{[%clk 0:00:15.9]} 30... Bc1 {[%clk 0:00:23.2]} 31. Ne4 {[%clk 0:00:12.8]} 31...
Bxg5 {[%clk 0:00:22.1]} 32. hxg5+ {[%clk 0:00:12.7]} 32... Kh5 {[%clk
0:00:13.9]} 33. Nxc3 {[%clk 0:00:12.9]} 33... Kxg5 {[%clk 0:00:14.3]} 34. Ne4+
{[%clk 0:00:12.6]} 34... Kg6 {[%clk 0:00:11.2]} 35. Be2 {[%clk 0:00:12.1]} 35...
Rd8 {[%clk 0:00:08]} 36. Bxg4 {[%clk 0:00:10.4]} 36... Rxd4 {[%clk 0:00:08.7]}
37. f3 {[%clk 0:00:10.5]} 37... Ra4 {[%clk 0:00:06.1]} 38. Bxe6 {[%clk
0:00:10.4]} 38... Rxa2 {[%clk 0:00:04.1]} 39. Bxa2 {[%clk 0:00:10.3]} 1-0

[Event "*** Titled Tuesday Blitz"]
[Site "Chess.com"]
[Date "2020.04.21"]
[Round "6"]
[White "AlexandraBotez"]
[Black "SmirnovAlexandrA"]
[Result "1/2-1/2"]
[WhiteElo "2117"]
[BlackElo "2362"]
[TimeControl "180+1"]
[EndTime "11:08:55 PDT"]
[Termination "Game drawn by stalemate"]

1. d4 {[%clk 0:03:00.9]} 1... Nf6 {[%clk 0:02:58.4]} 2. c4 {[%clk 0:03:00.3]}
2... g6 {[%clk 0:02:58.4]} 3. Nc3 {[%clk 0:02:59.8]} 3... Bg7 {[%clk 0:02:58.5]}
4. e4 {[%clk 0:02:59.7]} 4... O-O {[%clk 0:02:58.8]} 5. f3 {[%clk 0:02:59.8]}
5... d6 {[%clk 0:02:58.7]} 6. Be3 {[%clk 0:02:57.6]} 6... e5 {[%clk 0:02:57.3]}
7. d5 {[%clk 0:02:52.5]} 7... c6 {[%clk 0:02:50.2]} 8. Bd3 {[%clk 0:02:49.4]}
8... a6 {[%clk 0:02:49.6]} 9. Qd2 {[%clk 0:02:48.7]} 9... Nbd7 {[%clk
0:02:46.3]} 10. Nh3 {[%clk 0:02:47.9]} 10... Qc7 {[%clk 0:02:45.5]} 11. Nf2
{[%clk 0:02:47.3]} 11... b5 {[%clk 0:02:45.3]} 12. dxc6 {[%clk 0:02:46.3]} 12...
Qxc6 {[%clk 0:02:44.5]} 13. cxb5 {[%clk 0:02:45.6]} 13... axb5 {[%clk
0:02:44.6]} 14. Bxb5 {[%clk 0:02:43.8]} 14... Qc7 {[%clk 0:02:41.3]} 15. O-O
{[%clk 0:02:36.4]} 15... Nc5 {[%clk 0:02:37.2]} 16. Rfc1 {[%clk 0:02:24.6]}
16... Qe7 {[%clk 0:02:28]} 17. Nd3 {[%clk 0:02:18.1]} 17... Nxd3 {[%clk
0:02:25.4]} 18. Qxd3 {[%clk 0:02:09.3]} 18... Be6 {[%clk 0:02:25.2]} 19. a4
{[%clk 0:02:05.8]} 19... Nh5 {[%clk 0:02:24.4]} 20. Ne2 {[%clk 0:02:02.9]} 20...
f5 {[%clk 0:02:21]} 21. Rd1 {[%clk 0:01:37.4]} 21... Rad8 {[%clk 0:02:17.5]} 22.
Bb6 {[%clk 0:01:33.2]} 22... fxe4 {[%clk 0:02:17]} 23. fxe4 {[%clk 0:01:31.6]}
23... Rc8 {[%clk 0:01:57.7]} 24. Qxd6 {[%clk 0:01:08.2]} 24... Qf7 {[%clk
0:01:57.3]} 25. a5 {[%clk 0:00:59.2]} 25... Bc4 {[%clk 0:01:51]} 26. Bxc4 {[%clk
0:00:54.8]} 26... Qxc4 {[%clk 0:01:51.9]} 27. Qd5+ {[%clk 0:00:53.9]} 27... Qxd5
{[%clk 0:01:51]} 28. exd5 {[%clk 0:00:52.1]} 28... e4 {[%clk 0:01:49.8]} 29. Nc3
{[%clk 0:00:48.1]} 29... Bxc3 {[%clk 0:01:43.9]} 30. bxc3 {[%clk 0:00:48.1]}
30... Rxc3 {[%clk 0:01:44.4]} 31. d6 {[%clk 0:00:48.1]} 31... Rc2 {[%clk
0:01:42.3]} 32. g3 {[%clk 0:00:39.5]} 32... Nf6 {[%clk 0:01:35.8]} 33. d7 {[%clk
0:00:37.6]} 33... Ng4 {[%clk 0:01:33.9]} 34. d8=Q {[%clk 0:00:35.9]} 34... Rxd8
{[%clk 0:01:32.8]} 35. Rxd8+ {[%clk 0:00:35.2]} 35... Kg7 {[%clk 0:01:31.1]} 36.
h3 {[%clk 0:00:32]} 36... Nh2 {[%clk 0:01:29.5]} 37. Rd7+ {[%clk 0:00:20.9]}
37... Kf6 {[%clk 0:01:20.3]} 38. Rf1+ {[%clk 0:00:19.2]} 38... Nf3+ {[%clk
0:01:17.7]} 39. Rxf3+ {[%clk 0:00:19]} 39... exf3 {[%clk 0:01:18.6]} 40. Rd1
{[%clk 0:00:18]} 40... Rg2+ {[%clk 0:01:16.9]} 41. Kh1 {[%clk 0:00:18.3]} 41...
Kf5 {[%clk 0:01:12]} 42. a6 {[%clk 0:00:17.4]} 42... Ra2 {[%clk 0:01:11.2]} 43.
a7 {[%clk 0:00:17.4]} 43... Ke4 {[%clk 0:01:11.1]} 44. Re1+ {[%clk 0:00:13.9]}
44... Kf5 {[%clk 0:01:02.9]} 45. Rf1 {[%clk 0:00:11.6]} 45... Ke4 {[%clk
0:01:02.4]} 46. Rf2 {[%clk 0:00:11.1]} 46... Ra1+ {[%clk 0:01:00.7]} 47. Kh2
{[%clk 0:00:11.6]} 47... g5 {[%clk 0:01:00.2]} 48. g4 {[%clk 0:00:09.3]} 48...
Kf4 {[%clk 0:00:56.9]} 49. Bc7+ {[%clk 0:00:08.6]} 49... Ke4 {[%clk 0:00:57]}
50. Bb6 {[%clk 0:00:05.2]} 50... Kf4 {[%clk 0:00:56.8]} 51. Rb2 {[%clk 0:00:05]}
51... h5 {[%clk 0:00:55.6]} 52. gxh5 {[%clk 0:00:04.6]} 52... g4 {[%clk
0:00:55]} 53. hxg4 {[%clk 0:00:04.5]} 53... Kxg4 {[%clk 0:00:54.3]} 54. h6
{[%clk 0:00:05]} 54... Ra6 {[%clk 0:00:50]} 55. h7 {[%clk 0:00:04.7]} 55... f2
{[%clk 0:00:50.3]} 56. Rxf2 {[%clk 0:00:03.1]} 56... Rxb6 {[%clk 0:00:50.4]} 57.
h8=Q {[%clk 0:00:03.5]} 57... Rh6+ {[%clk 0:00:50]} 58. Qxh6 {[%clk 0:00:03.8]}
1/2-1/2

[Event "*** Titled Tuesday Blitz"]
[Site "Chess.com"]
[Date "2020.04.21"]
[Round "6"]
[White "AlexTriapishko"]
[Black "tvjosue"]
[Result "1-0"]
[WhiteElo "2748"]
[BlackElo "2523"]
[TimeControl "180+1"]
[EndTime "11:08:56 PDT"]
[Termination "AlexTriapishko won by resignation"]

1. e4 {[%clk 0:02:28.6]} 1... c5 {[%clk 0:02:58.1]} 2. Nf3 {[%clk 0:02:25.6]}
2... d6 {[%clk 0:02:58.2]} 3. d4 {[%clk 0:02:25.4]} 3... cxd4 {[%clk 0:02:59.1]}
4. Nxd4 {[%clk 0:02:26.3]} 4... Nf6 {[%clk 0:02:59.5]} 5. Nc3 {[%clk 0:02:27]}
5... a6 {[%clk 0:02:59.2]} 6. Bg5 {[%clk 0:02:21.8]} 6... e6 {[%clk 0:02:59.1]}
7. f4 {[%clk 0:02:16.9]} 7... Qb6 {[%clk 0:02:58.4]} 8. Nb3 {[%clk 0:02:11.9]}
8... Nc6 {[%clk 0:02:45.7]} 9. Qf3 {[%clk 0:02:05]} 9... h6 {[%clk 0:02:41.4]}
10. Bxf6 {[%clk 0:02:02.3]} 10... gxf6 {[%clk 0:02:42.3]} 11. O-O-O {[%clk
0:02:02.8]} 11... h5 {[%clk 0:02:42.7]} 12. Be2 {[%clk 0:01:55.5]} 12... Bd7
{[%clk 0:02:42.1]} 13. Kb1 {[%clk 0:01:55.7]} 13... O-O-O {[%clk 0:02:41.8]} 14.
Rhf1 {[%clk 0:01:51]} 14... Na5 {[%clk 0:02:41.1]} 15. Qd3 {[%clk 0:01:47.4]}
15... Bc6 {[%clk 0:02:39.6]} 16. Nd4 {[%clk 0:01:41]} 16... Bd7 {[%clk
0:02:35.3]} 17. Rf3 {[%clk 0:01:37.9]} 17... Kb8 {[%clk 0:02:34.5]} 18. Bf1
{[%clk 0:01:37]} 18... Be7 {[%clk 0:02:32.9]} 19. Qd2 {[%clk 0:01:35.7]} 19...
Nc6 {[%clk 0:02:32.6]} 20. Nb3 {[%clk 0:01:21.1]} 20... Na5 {[%clk 0:02:31.9]}
21. Qe1 {[%clk 0:00:58.1]} 21... Nxb3 {[%clk 0:02:30.5]} 22. axb3 {[%clk
0:00:56.7]} 22... Bc6 {[%clk 0:02:30.3]} 23. Rfd3 {[%clk 0:00:52.5]} 23... Qa5
{[%clk 0:02:14.4]} 24. Rd4 {[%clk 0:00:38.3]} 24... e5 {[%clk 0:01:22.6]} 25. b4
{[%clk 0:00:35.8]} 25... Qb6 {[%clk 0:01:22.4]} 26. Nd5 {[%clk 0:00:33.8]} 26...
Bxd5 {[%clk 0:01:19.7]} 27. Rxd5 {[%clk 0:00:34.7]} 27... exf4 {[%clk
0:01:15.9]} 28. Bd3 {[%clk 0:00:25.4]} 28... Rhg8 {[%clk 0:01:14.6]} 29. Qf1
{[%clk 0:00:25.5]} 29... Rg5 {[%clk 0:01:11.8]} 30. b5 {[%clk 0:00:19.1]} 30...
Rxd5 {[%clk 0:01:10]} 31. exd5 {[%clk 0:00:20]} 31... a5 {[%clk 0:01:10.3]} 32.
Qxf4 {[%clk 0:00:20.2]} 32... Qc5 {[%clk 0:01:06.7]} 33. Re1 {[%clk 0:00:19.3]}
33... Rd7 {[%clk 0:01:02.9]} 34. Qf5 {[%clk 0:00:19.7]} 34... Rc7 {[%clk
0:01:02.8]} 35. Qxh5 {[%clk 0:00:19.3]} 35... a4 {[%clk 0:01:03]} 36. Qg4 {[%clk
0:00:14]} 36... f5 {[%clk 0:01:02.1]} 37. Qxa4 {[%clk 0:00:13.4]} 37... Bf6
{[%clk 0:00:56.4]} 38. Re8+ {[%clk 0:00:11.6]} 38... Rc8 {[%clk 0:00:56.7]} 39.
Rxc8+ {[%clk 0:00:12]} 39... Qxc8 {[%clk 0:00:57.6]} 40. b6 {[%clk 0:00:11.3]}
40... Qc5 {[%clk 0:00:47.7]} 41. Qa7+ {[%clk 0:00:11.2]} 41... Kc8 {[%clk
0:00:48]} 42. Qa8+ {[%clk 0:00:09]} 42... Kd7 {[%clk 0:00:47.5]} 43. Qxb7+
{[%clk 0:00:09.6]} 43... Kd8 {[%clk 0:00:45.1]} 44. Qb8+ {[%clk 0:00:09.9]}
44... Ke7 {[%clk 0:00:39.5]} 45. Qc7+ {[%clk 0:00:10.3]} 45... Qxc7 {[%clk
0:00:39.6]} 46. bxc7 {[%clk 0:00:11.2]} 46... Kd7 {[%clk 0:00:39.8]} 47. Bxf5+
{[%clk 0:00:12.1]} 47... Kxc7 {[%clk 0:00:40.7]} 48. c3 {[%clk 0:00:12.8]} 48...
Be5 {[%clk 0:00:41]} 49. h4 {[%clk 0:00:12.8]} 1-0

[Event "*** Titled Tuesday Blitz"]
[Site "Chess.com"]
[Date "2020.04.21"]
[Round "6"]
[White "SirMittensofMittensville"]
[Black "JoachimMouhamad"]
[Result "1-0"]
[WhiteElo "2668"]
[BlackElo "2365"]
[TimeControl "180+1"]
[EndTime "11:08:56 PDT"]
[Termination "SirMittensofMittensville won on time"]

1. e4 {[%clk 0:03:00.9]} 1... c5 {[%clk 0:02:54.7]} 2. c3 {[%clk 0:03:00.5]}
2... Nf6 {[%clk 0:02:53.3]} 3. e5 {[%clk 0:03:00.6]} 3... Nd5 {[%clk 0:02:53.1]}
4. Bc4 {[%clk 0:03:01.5]} 4... Nb6 {[%clk 0:02:45.7]} 5. Bb3 {[%clk 0:03:01.6]}
5... Nc6 {[%clk 0:02:43.8]} 6. Nf3 {[%clk 0:03:02.1]} 6... d6 {[%clk 0:02:39.8]}
7. exd6 {[%clk 0:03:03]} 7... Qxd6 {[%clk 0:02:38]} 8. O-O {[%clk 0:03:01.8]}
8... e6 {[%clk 0:02:23.2]} 9. d4 {[%clk 0:02:58.4]} 9... cxd4 {[%clk 0:02:22.6]}
10. Qe2 {[%clk 0:02:54.6]} 10... d3 {[%clk 0:02:15.7]} 11. Qe4 {[%clk
0:02:54.2]} 11... f5 {[%clk 0:01:59.6]} 12. Qe3 {[%clk 0:02:31.4]} 12... Na5
{[%clk 0:01:23.7]} 13. Na3 {[%clk 0:02:13.2]} 13... Nxb3 {[%clk 0:01:23]} 14.
axb3 {[%clk 0:02:12.8]} 14... Bd7 {[%clk 0:01:13.6]} 15. Rd1 {[%clk 0:02:04.8]}
15... Qc7 {[%clk 0:01:08.6]} 16. Rxd3 {[%clk 0:01:50.4]} 16... Bd6 {[%clk
0:01:08.3]} 17. Nd4 {[%clk 0:01:31.6]} 17... Nd5 {[%clk 0:00:58.9]} 18. Nxe6
{[%clk 0:01:20]} 18... Nxe3 {[%clk 0:00:51.9]} 19. Nxc7+ {[%clk 0:01:19]} 19...
Bxc7 {[%clk 0:00:52.8]} 20. Rxe3+ {[%clk 0:01:19.4]} 20... Kf7 {[%clk 0:00:51]}
21. Nc4 {[%clk 0:01:10.2]} 21... Rhe8 {[%clk 0:00:48.8]} 22. Bd2 {[%clk
0:01:03.2]} 22... a6 {[%clk 0:00:45]} 23. Rae1 {[%clk 0:00:55]} 23... Rxe3
{[%clk 0:00:44.6]} 24. Bxe3 {[%clk 0:00:55.9]} 24... Be6 {[%clk 0:00:42]} 25.
Bd4 {[%clk 0:00:53.8]} 25... b5 {[%clk 0:00:34.3]} 26. Nd2 {[%clk 0:00:49.1]}
26... Rd8 {[%clk 0:00:28]} 27. b4 {[%clk 0:00:45.3]} 27... g5 {[%clk 0:00:25.2]}
28. Nf3 {[%clk 0:00:37.7]} 28... h6 {[%clk 0:00:24.9]} 29. Ra1 {[%clk
0:00:35.8]} 29... Bc8 {[%clk 0:00:23.3]} 30. Nd2 {[%clk 0:00:33.8]} 30... Bb7
{[%clk 0:00:21.8]} 31. Nb3 {[%clk 0:00:33.5]} 31... Bd6 {[%clk 0:00:20.9]} 32.
f3 {[%clk 0:00:32.8]} 32... Re8 {[%clk 0:00:20.2]} 33. Kf2 {[%clk 0:00:32.7]}
33... h5 {[%clk 0:00:16.2]} 34. Nc5 {[%clk 0:00:32.3]} 34... Bxc5 {[%clk
0:00:15.6]} 35. bxc5 {[%clk 0:00:33.2]} 35... Re6 {[%clk 0:00:13.8]} 36. h4
{[%clk 0:00:28.8]} 36... g4 {[%clk 0:00:12.4]} 37. Kg3 {[%clk 0:00:27.1]} 37...
Re2 {[%clk 0:00:10.2]} 38. b4 {[%clk 0:00:25.1]} 38... gxf3 {[%clk 0:00:09]} 39.
gxf3 {[%clk 0:00:26]} 39... Re6 {[%clk 0:00:08.2]} 40. Kf4 {[%clk 0:00:26]}
40... Rc6 {[%clk 0:00:04.6]} 41. Kxf5 {[%clk 0:00:22.7]} 41... Re6 {[%clk
0:00:04.1]} 42. Kf4 {[%clk 0:00:22.1]} 42... Rg6 {[%clk 0:00:03.7]} 43. Re1
{[%clk 0:00:21.3]} 43... Re6 {[%clk 0:00:03]} 44. Be5 {[%clk 0:00:20.2]} 1-0

[Event "*** Titled Tuesday Blitz"]
[Site "Chess.com"]
[Date "2020.04.21"]
[Round "6"]
[White "politeplayer"]
[Black "Andrii_Prydun"]
[Result "1-0"]
[WhiteElo "2179"]
[BlackElo "2321"]
[TimeControl "180+1"]
[EndTime "11:08:57 PDT"]
[Termination "politeplayer won by resignation"]

1. e4 {[%clk 0:03:00.9]} 1... Nf6 {[%clk 0:02:59.3]} 2. e5 {[%clk 0:02:57.5]}
2... Nd5 {[%clk 0:02:59.5]} 3. Nc3 {[%clk 0:02:57.9]} 3... Nxc3 {[%clk
0:02:55.9]} 4. dxc3 {[%clk 0:02:57.7]} 4... d6 {[%clk 0:02:55.7]} 5. Nf3 {[%clk
0:02:57.2]} 5... Nc6 {[%clk 0:02:53.4]} 6. Bb5 {[%clk 0:02:55.3]} 6... Bd7
{[%clk 0:02:52.7]} 7. Qe2 {[%clk 0:02:52]} 7... g6 {[%clk 0:02:46.2]} 8. Bg5
{[%clk 0:02:50]} 8... Bg7 {[%clk 0:02:43.1]} 9. Bxc6 {[%clk 0:02:42.4]} 9...
bxc6 {[%clk 0:02:42.2]} 10. O-O-O {[%clk 0:02:39]} 10... h6 {[%clk 0:02:36.2]}
11. Bf6 {[%clk 0:02:30.9]} 11... O-O {[%clk 0:02:29.3]} 12. Bxg7 {[%clk
0:02:30.9]} 12... Kxg7 {[%clk 0:02:30.2]} 13. h4 {[%clk 0:02:23.8]} 13... Bg4
{[%clk 0:02:29.9]} 14. h5 {[%clk 0:02:22]} 14... g5 {[%clk 0:02:08.6]} 15. Qe4
{[%clk 0:02:15.4]} 15... Bxf3 {[%clk 0:02:03.8]} 16. gxf3 {[%clk 0:02:15.5]}
16... Qd7 {[%clk 0:01:54.9]} 17. f4 {[%clk 0:02:12.3]} 17... Qg4 {[%clk
0:01:54.7]} 18. Rdg1 {[%clk 0:02:09]} 18... Qe6 {[%clk 0:01:50.5]} 19. fxg5
{[%clk 0:02:06.9]} 19... Qxe5 {[%clk 0:01:50.2]} 20. gxh6+ {[%clk 0:02:03.5]}
20... Kxh6 {[%clk 0:01:50.4]} 21. Qxc6 {[%clk 0:01:12.7]} 21... Rab8 {[%clk
0:01:44.4]} 22. Qg2 {[%clk 0:01:03.1]} 22... Rg8 {[%clk 0:01:40.7]} 23. Qxg8
{[%clk 0:00:58.1]} 23... Rxg8 {[%clk 0:01:41.5]} 24. Rxg8 {[%clk 0:00:57.9]}
24... Qf4+ {[%clk 0:01:42.3]} 25. Kb1 {[%clk 0:00:57.2]} 25... Qxf2 {[%clk
0:01:42]} 26. Rhg1 {[%clk 0:00:56.4]} 26... Qf6 {[%clk 0:01:30.8]} 27. Ra8
{[%clk 0:00:43]} 27... Kh7 {[%clk 0:01:24.9]} 28. h6 {[%clk 0:00:39.4]} 28... e5
{[%clk 0:01:03.9]} 29. a4 {[%clk 0:00:31.7]} 29... e4 {[%clk 0:01:04]} 30. Rag8
{[%clk 0:00:25.2]} 30... e3 {[%clk 0:00:59.8]} 31. R1g7+ {[%clk 0:00:24.2]}
31... Kxh6 {[%clk 0:00:59.8]} 32. Rg1 {[%clk 0:00:23.7]} 32... Kh7 {[%clk
0:00:40.2]} 33. R8g3 {[%clk 0:00:22]} 33... Qh6 {[%clk 0:00:36.3]} 34. Re1
{[%clk 0:00:21.6]} 34... f5 {[%clk 0:00:31.9]} 35. Rgxe3 {[%clk 0:00:19]} 35...
Qh2 {[%clk 0:00:31.2]} 36. R3e2 {[%clk 0:00:17.1]} 36... Qg3 {[%clk 0:00:29.8]}
37. Re7+ {[%clk 0:00:16.6]} 37... Kg6 {[%clk 0:00:29.4]} 38. R1e6+ {[%clk
0:00:16.8]} 38... Kh5 {[%clk 0:00:25.4]} 39. Rh7+ {[%clk 0:00:17]} 39... Kg5
{[%clk 0:00:20.6]} 40. Rg7+ {[%clk 0:00:17]} 40... Kf4 {[%clk 0:00:19.6]} 41.
Rxg3 {[%clk 0:00:17]} 41... Kxg3 {[%clk 0:00:20.5]} 42. Kc1 {[%clk 0:00:17.2]}
42... f4 {[%clk 0:00:19.6]} 43. Kd2 {[%clk 0:00:17.4]} 43... Kg2 {[%clk
0:00:18.8]} 44. Ke1 {[%clk 0:00:14.9]} 44... f3 {[%clk 0:00:18.2]} 45. Rf6
{[%clk 0:00:15.3]} 45... d5 {[%clk 0:00:15.9]} 46. b4 {[%clk 0:00:15.5]} 46...
a5 {[%clk 0:00:12.6]} 1-0